Workbook

Sheet Notes
B2: To Do
B4: protect compounded payments from begin entered in as greater than total annual payments
B5: common scenarios: extra payment each year, vs regular extra, etc. (are their more?)
B7: break-even on points or interest rate changes
B8: break-even on points or interest rate changes
B9: refinancing
B10: extra points on or off?
B13: for super large, unrealistic loan lengths, the payment periods calculation is breaking, low by one

Sheet Amort Chart
M3: Calculated | O3: Other/Alt | AG3: Calculated | AI3: Other/Alt
C4: Mortgage/Amortized Loan Analysis Worksheet | K4: Loan Parameters | M4: Adjustments | O4: Calculations | Q4: Description | W4: Mortgage/Amortized Loan Analysis Worksheet | AE4: Loan Parameters | AG4: Adjustments | AI4: Calculations | AK4: Description
G7: Principal | K7: 10000 | M7: =IF(OR(K$7="", K$7<K$8), "", K$7-K$8) -> 10000 | AA7: Principal | AE7: 10000 | AG7: =IF(OR(AE$7="", AE$7<AE$8), "", AE$7-AE$8) -> 10000
G8: Down Payment | AA8: Down Payment
G10: Nominal Rate Per Period (R) | I10: APR | K10: 6 | M10: =K$10/100 -> 0.06 | O10: =CalcEffectiveInterestRatePerPeriod(M$10,K$16) -> 0.0616778098 | Q10: CalcEffectiveInterestRatePerPeriod | AA10: Nominal Rate Per Period (R) | AC10: APR | AE10: 6 | AG10: =AE$10/100 -> 0.06 | AI10: =CalcEffectiveInterestRatePerPeriod(AG$10,AE$16) -> 0.0616778098 | AK10: CalcEffectiveInterestRatePerPeriod
G12: Number of Payments | I12: years | K12: 5 | M12: =IF(K$12="","",K$12*K$15) -> 60 | O12: =IF(OR(M$7="", M$10=""), "", CalcNumberOfPeriods(M$7,M$21, M$10,K$15)) -> 60.00000381 | Q12: CalcNumberOfPeriods | AA12: Number of Payments | AC12: years | AE12: 5 | AG12: =IF(AE$12="","",AE$12*AE$15) -> 60 | AI12: =IF(OR(AG$7="", AG$10=""), "", CalcNumberOfPeriods(AG$7,AG$21, AG$10,AE$15)) -> 60.00000381 | AK12: CalcNumberOfPeriods
I13: months | K13: 60 | AC13: months | AE13: 60
I15: payments per period | K15: 12 | O15: =IF(OR(M$10="", K$16=""), "", CalcPeriodicInterestRate(M$10, K$16)) -> 0.004999999888 | Q15: CalcPeriodicInterestRate | AC15: payments per period | AE15: 12 | AI15: =IF(OR(AG$10="", AE$16=""), "", CalcPeriodicInterestRate(AG$10, AE$16)) -> 0.004999999888 | AK15: CalcPeriodicInterestRate
I16: compounding per period | K16: 12 | O16: =IF(OR(M$10="", K$15="", K$16=""), "", CalcPeriodicEquivalentInterestRate(M$10, K$16, K$15)) -> 0.004999999888 | Q16: CalcPeriodicEquivalentInterestRate | AC16: compounding per period | AE16: 12 | AI16: =IF(OR(AG$10="", AE$15="", AE$16=""), "", CalcPeriodicEquivalentInterestRate(AG$10, AE$16, AE$15)) -> 0.004999999888 | AK16: CalcPeriodicEquivalentInterestRate
G18: Periodic Interest Rate | I18: P | K18: =M$18 -> 0.004999999888 | M18: =IF(OR(M$10="", K$15="", K$16=""), "", CalcPeriodicEquivalentInterestRate(M$10, K$16, K$15)) -> 0.004999999888 | O18: =IF(OR(M$10="", M$12="", K$12=""), "", IF(K$12=0,"",M$10/(M$12/K$12))) -> 0.005 | AA18: Periodic Interest Rate | AC18: P | AE18: =AG$18 -> 0.004999999888 | AG18: =IF(OR(AG$10="", AE$15="", AE$16=""), "", CalcPeriodicEquivalentInterestRate(AG$10, AE$16, AE$15)) -> 0.004999999888 | AI18: =IF(OR(AG$10="", AG$12="", AE$12=""), "", IF(AE$12=0,"",AG$10/(AG$12/AE$12))) -> 0.005
K21: Regular Payment Amount | M21: =IF(OR(M$7="",M$12=""),"",CalcLoanPayment(M$7,M$10,M$12,K$15,K$16)) -> 193.3280182 | O21: =IF(OR(M$7="",M$10="",M$12=""),"", IF(M$10=0,(M$7/M$12),((M$10/K$15)*M$7)/(1-((1+ (M$10/K$15))^(-M$12))))) -> 193.3280153 | AE21: Regular Payment Amount | AG21: =IF(OR(AG$7="",AG$12=""),"",CalcLoanPayment(AG$7,AG$10,AG$12,AE$15,AE$16)) -> 193.3280182 | AI21: =IF(OR(AG$7="",AG$10="",AG$12=""),"", IF(AG$10=0,(AG$7/AG$12),((AG$10/AE$15)*AG$7)/(1-((1+ (AG$10/AE$15))^(-AG$12))))) -> 193.3280153
K22: Extra Regular Payment Amount | O22: =IF(OR(K$13="", O$24=""),"",TEXT((K$13-O$24)/12, "#0.0") & " yrs saved") -> 0.0 yrs saved | AE22: Extra Regular Payment Amount | AG22: 56.67 | AI22: =IF(OR(AE$13="", AI$24=""),"",TEXT((AE$13-AI$24)/12, "#0.0") & " yrs saved") -> 1.3 yrs saved
K24: Total Regular Payment Amount, (adjusted number of payments) | M24: =IF(M$21="","", SUM(M$21:M$22)) -> 193.3280182 | O24: =IF(OR(M$7="",M$10="",M$24="",K$15=""),"", CalcNumberOfPeriods(M$7, M$24, M$10, K$15)) -> 60.00000381 | AE24: Total Regular Payment Amount, (adjusted number of payments) | AG24: =IF(AG$21="","", SUM(AG$21:AG$22)) -> 249.9980182 | AI24: =IF(OR(AG$7="",AG$10="",AG$24="",AE$15=""),"", CalcNumberOfPeriods(AG$7, AG$24, AG$10, AE$15)) -> 44.74058914
K26: Total Repaid | M26: 11599.68018 | O26: =IF(M$21="","", M$21*M$12) -> 11599.68109 | AE26: Total Repaid | AG26: 11185.17778 | AI26: =IF(AG$21="","", AG$21*AG$12) -> 11599.68109
K27: Total Interest Paid | M27: 1599.680995 | O27: =IF(O$26="","", O$26-M$7) -> 1599.681091 | Q27: =M$27/K$12 -> 319.936199 | R27: per year | AE27: Total Interest Paid | AG27: 1185.177781 | AI27: =IF(AI$26="","", AI$26-AG$7) -> 1599.681091 | AK27: =AG$27/AE$12 -> 237.0355562 | AL27: per year
K28: Interest as % of Principal | M28: =IF(M$26="","", M$27/M$7) -> 0.1599680995 | O28: =IF(O$26="","", O$27/M$7) -> 0.1599681091 | Q28: =Q$27/12 -> 26.66134992 | R28: per month | AE28: Interest as % of Principal | AG28: =IF(AG$26="","", AG$27/AG$7) -> 0.1185177781 | AI28: =IF(AI$26="","", AI$27/AG$7) -> 0.1599681091 | AK28: =AK$27/12 -> 19.75296302 | AL28: per month
I31: Principal | K31: Interest | M31: Irregular Payments | AC31: Principal | AE31: Interest | AG31: Irregular Payments
E32: Principal | G32: Interest | I32: Paid | K32: Paid | M32: in excess of | O32: Principal | Y32: Principal | AA32: Interest | AC32: Paid | AE32: Paid | AG32: in excess of | AI32: Principal
C33: Period | E33: (this payment) | G33: (this payment) | I33: (cumulative) | K33: (cumulative) | M33: Principal | O33: Balance | W33: Period | Y33: (this payment) | AA33: (this payment) | AC33: (cumulative) | AE33: (cumulative) | AG33: Principal | AI33: Balance
O35: =M7 -> 10000 | AI35: =AG7 -> 10000
C36: 1 | E36: 143.328004 | G36: 49.99999888 | I36: 143.328004 | K36: 49.99999888 | O36: 9856.671996 | W36: 1 | Y36: 199.9980022 | AA36: 49.99999888 | AC36: 199.9980022 | AE36: 49.99999888 | AI36: 9800.001998
C37: 2 | E37: 144.0446441 | G37: 49.28335888 | I37: 287.3726481 | K37: 99.28335776 | O37: 9712.627352 | W37: 2 | Y37: 200.9979922 | AA37: 49.00000889 | AC37: 400.9959944 | AE37: 99.00000778 | AI37: 9599.004006
C38: 3 | E38: 144.7648673 | G38: 48.56313567 | I38: 432.1375154 | K38: 147.8464934 | O38: 9567.862485 | W38: 3 | Y38: 202.0029821 | AA38: 47.99501896 | AC38: 602.9989766 | AE38: 146.9950267 | AI38: 9397.001023
C39: 4 | E39: 145.4886916 | G39: 47.83931135 | I39: 577.6262069 | K39: 195.6858048 | O39: 9422.373793 | W39: 4 | Y39: 203.012997 | AA39: 46.98500407 | AC39: 806.0119736 | AE39: 193.9800308 | AI39: 9193.988026
C40: 5 | E40: 146.216135 | G40: 47.11186791 | I40: 723.8423419 | K40: 242.7976727 | O40: 9276.157658 | W40: 5 | Y40: 204.028062 | AA40: 45.9699391 | AC40: 1010.040036 | AE40: 239.9499699 | AI40: 8989.959964
C41: 6 | E41: 146.9472157 | G41: 46.38078725 | I41: 870.7895576 | K41: 289.17846 | O41: 9129.210442 | W41: 6 | Y41: 205.0482023 | AA41: 44.94979882 | AC41: 1215.088238 | AE41: 284.8997687 | AI41: 8784.911762
C42: 7 | E42: 147.6819517 | G42: 45.64605119 | I42: 1018.471509 | K42: 334.8245111 | O42: 8981.528491 | W42: 7 | Y42: 206.0734433 | AA42: 43.92455783 | AC42: 1421.161681 | AE42: 328.8243265 | AI42: 8578.838319
C43: 8 | E43: 148.4203615 | G43: 44.90764145 | I43: 1166.891871 | K43: 379.7321526 | O43: 8833.108129 | W43: 8 | Y43: 207.1038105 | AA43: 42.89419064 | AC43: 1628.265492 | AE43: 371.7185172 | AI43: 8371.734508
C44: 9 | E44: 149.1624633 | G44: 44.16553966 | I44: 1316.054334 | K44: 423.8976923 | O44: 8683.945666 | W44: 9 | Y44: 208.1393295 | AA44: 41.85867161 | AC44: 1836.404821 | AE44: 413.5771888 | AI44: 8163.595179
C45: 10 | E45: 149.9082756 | G45: 43.41972736 | I45: 1465.96261 | K45: 467.3174196 | O45: 8534.03739 | W45: 10 | Y45: 209.1800261 | AA45: 40.81797498 | AC45: 2045.584847 | AE45: 454.3951638 | AI45: 7954.415153
C46: 11 | E46: 150.6578169 | G46: 42.670186 | I46: 1616.620427 | K46: 509.9876056 | O46: 8383.379573 | W46: 11 | Y46: 210.2259262 | AA46: 39.77207487 | AC46: 2255.810773 | AE46: 494.1672386 | AI46: 7744.189227
C47: 12 | E47: 151.411106 | G47: 41.91689693 | I47: 1768.031533 | K47: 551.9045025 | O47: 8231.968467 | W47: 12 | Y47: 211.2770558 | AA47: 38.72094527 | AC47: 2467.087829 | AE47: 532.8881839 | AI47: 7532.912171
C48: 13 | E48: 152.1681615 | G48: 41.15984142 | I48: 1920.199694 | K48: 593.064344 | O48: 8079.800306 | W48: 13 | Y48: 212.3334411 | AA48: 37.66456001 | AC48: 2679.42127 | AE48: 570.5527439 | AI48: 7320.57873
C49: 14 | E49: 152.9290023 | G49: 40.39900063 | I49: 2073.128696 | K49: 633.4633446 | O49: 7926.871304 | W49: 14 | Y49: 213.3951083 | AA49: 36.60289283 | AC49: 2892.816379 | AE49: 607.1556368 | AI49: 7107.183621
C50: 15 | E50: 153.6936473 | G50: 39.63435563 | I50: 2226.822344 | K50: 673.0977002 | O50: 7773.177656 | W50: 15 | Y50: 214.4620838 | AA50: 35.53591731 | AC50: 3107.278462 | AE50: 642.6915541 | AI50: 6892.721538
C51: 16 | E51: 154.4621155 | G51: 38.86588741 | I51: 2381.284459 | K51: 711.9635876 | O51: 7618.715541 | W51: 16 | Y51: 215.5343942 | AA51: 34.46360692 | AC51: 3322.812857 | AE51: 677.155161 | AI51: 6677.187143
C52: 17 | E52: 155.2344261 | G52: 38.09357685 | I52: 2536.518885 | K52: 750.0571645 | O52: 7463.481115 | W52: 17 | Y52: 216.6120661 | AA52: 33.38593497 | AC52: 3539.424923 | AE52: 710.541096 | AI52: 6460.575077
C53: 18 | E53: 156.0105982 | G53: 37.31740474 | I53: 2692.529484 | K53: 787.3745692 | O53: 7307.470516 | W53: 18 | Y53: 217.6951264 | AA53: 32.30287466 | AC53: 3757.120049 | AE53: 742.8439706 | AI53: 6242.879951
C54: 19 | E54: 156.7906512 | G54: 36.53735177 | I54: 2849.320135 | K54: 823.911921 | O54: 7150.679865 | W54: 19 | Y54: 218.783602 | AA54: 31.21439906 | AC54: 3975.903651 | AE54: 774.0583697 | AI54: 6024.096349
C55: 20 | E55: 157.5746044 | G55: 35.75339853 | I55: 3006.894739 | K55: 859.6653195 | O55: 6993.105261 | W55: 20 | Y55: 219.87752 | AA55: 30.12048107 | AC55: 4195.781171 | AE55: 804.1788507 | AI55: 5804.218829
C56: 21 | E56: 158.3624774 | G56: 34.96552552 | I56: 3165.257216 | K56: 894.630845 | O56: 6834.742784 | W56: 21 | Y56: 220.9769076 | AA56: 29.0210935 | AC56: 4416.758079 | AE56: 833.1999442 | AI56: 5583.241921
C57: 22 | E57: 159.1542898 | G57: 34.17371315 | I57: 3324.411506 | K57: 928.8045582 | O57: 6675.588494 | W57: 22 | Y57: 222.0817921 | AA57: 27.91620898 | AC57: 4638.839871 | AE57: 861.1161532 | AI57: 5361.160129
C58: 23 | E58: 159.9500612 | G58: 33.37794172 | I58: 3484.361567 | K58: 962.1824999 | O58: 6515.638433 | W58: 23 | Y58: 223.1922011 | AA58: 26.80580005 | AC58: 4862.032072 | AE58: 887.9219533 | AI58: 5137.967928
C59: 24 | E59: 160.7498115 | G59: 32.57819143 | I59: 3645.111379 | K59: 994.7606913 | O59: 6354.888621 | W59: 24 | Y59: 224.308162 | AA59: 25.68983907 | AC59: 5086.340234 | AE59: 913.6117923 | AI59: 4913.659766
C60: 25 | E60: 161.5535605 | G60: 31.77444239 | I60: 3806.664939 | K60: 1026.535134 | O60: 6193.335061 | W60: 25 | Y60: 225.4297028 | AA60: 24.56829828 | AC60: 5311.769937 | AE60: 938.1800906 | AI60: 4688.230063
C61: 26 | E61: 162.3613283 | G61: 30.96667461 | I61: 3969.026268 | K61: 1057.501808 | O61: 6030.973732 | W61: 26 | Y61: 226.5568513 | AA61: 23.44114979 | AC61: 5538.326788 | AE61: 961.6212404 | AI61: 4461.673212
C62: 27 | E62: 163.1731349 | G62: 30.15486799 | I62: 4132.199403 | K62: 1087.656676 | O62: 5867.800597 | W62: 27 | Y62: 227.6896355 | AA62: 22.30836556 | AC62: 5766.016424 | AE62: 983.929606 | AI62: 4233.983576
C63: 28 | E63: 163.9890006 | G63: 29.33900233 | I63: 4296.188403 | K63: 1116.995679 | O63: 5703.811597 | W63: 28 | Y63: 228.8280837 | AA63: 21.16991741 | AC63: 5994.844507 | AE63: 1005.099523 | AI63: 4005.155493
C64: 29 | E64: 164.8089456 | G64: 28.51905735 | I64: 4460.997349 | K64: 1145.514736 | O64: 5539.002651 | W64: 29 | Y64: 229.9722241 | AA64: 20.02577702 | AC64: 6224.816731 | AE64: 1025.1253 | AI64: 3775.183269
C65: 30 | E65: 165.6329903 | G65: 27.69501264 | I65: 4626.630339 | K65: 1173.209749 | O65: 5373.369661 | W65: 30 | Y65: 231.1220852 | AA65: 18.87591592 | AC65: 6455.938817 | AE65: 1044.001216 | AI65: 3544.061183
C66: 31 | E66: 166.4611552 | G66: 26.8668477 | I66: 4793.091494 | K66: 1200.076596 | O66: 5206.908506 | W66: 31 | Y66: 232.2776956 | AA66: 17.72030552 | AC66: 6688.216512 | AE66: 1061.721522 | AI66: 3311.783488
C67: 32 | E67: 167.293461 | G67: 26.03454195 | I67: 4960.384955 | K67: 1226.111138 | O67: 5039.615045 | W67: 32 | Y67: 233.439084 | AA67: 16.55891707 | AC67: 6921.655596 | AE67: 1078.280439 | AI67: 3078.344404
C68: 33 | E68: 168.1299283 | G68: 25.19807466 | I68: 5128.514884 | K68: 1251.309213 | O68: 4871.485116 | W68: 33 | Y68: 234.6062794 | AA68: 15.39172167 | AC68: 7156.261876 | AE68: 1093.672161 | AI68: 2843.738124
C69: 34 | E69: 168.9705779 | G69: 24.35742504 | I69: 5297.485462 | K69: 1275.666638 | O69: 4702.514538 | W69: 34 | Y69: 235.7793108 | AA69: 14.2186903 | AC69: 7392.041186 | AE69: 1107.890851 | AI69: 2607.958814
C70: 35 | E70: 169.8154308 | G70: 23.51257217 | I70: 5467.300892 | K70: 1299.17921 | O70: 4532.699108 | W70: 35 | Y70: 236.9582073 | AA70: 13.03979378 | AC70: 7628.999394 | AE70: 1120.930645 | AI70: 2371.000606
C71: 36 | E71: 170.6645079 | G71: 22.66349503 | I71: 5637.9654 | K71: 1321.842705 | O71: 4362.0346 | W71: 36 | Y71: 238.1429983 | AA71: 11.85500277 | AC71: 7867.142392 | AE71: 1132.785647 | AI71: 2132.857608
C72: 37 | E72: 171.5178304 | G72: 21.81017251 | I72: 5809.483231 | K72: 1343.652878 | O72: 4190.516769 | W72: 37 | Y72: 239.3337133 | AA72: 10.6642878 | AC72: 8106.476105 | AE72: 1143.449935 | AI72: 1893.523895
C73: 38 | E73: 172.3754196 | G73: 20.95258338 | I73: 5981.85865 | K73: 1364.605461 | O73: 4018.14135 | W73: 38 | Y73: 240.5303818 | AA73: 9.467619261 | AC73: 8347.006487 | AE73: 1152.917554 | AI73: 1652.993513
C74: 39 | E74: 173.2372966 | G74: 20.0907063 | I74: 6155.095947 | K74: 1384.696167 | O74: 3844.904053 | W74: 39 | Y74: 241.7330337 | AA74: 8.264967379 | AC74: 8588.739521 | AE74: 1161.182522 | AI74: 1411.260479
C75: 40 | E75: 174.1034831 | G75: 19.22451984 | I75: 6329.19943 | K75: 1403.920687 | O75: 3670.80057 | W75: 40 | Y75: 242.9416989 | AA75: 7.056302237 | AC75: 8831.68122 | AE75: 1168.238824 | AI75: 1168.31878
C76: 41 | E76: 174.9740005 | G76: 18.35400244 | I76: 6504.17343 | K76: 1422.27469 | O76: 3495.82657 | W76: 41 | Y76: 244.1564073 | AA76: 5.84159377 | AC76: 9075.837627 | AE76: 1174.080418 | AI76: 924.1623728
C77: 42 | E77: 175.8488705 | G77: 17.47913246 | I77: 6680.022301 | K77: 1439.753822 | O77: 3319.977699 | W77: 42 | Y77: 245.3771893 | AA77: 4.620811761 | AC77: 9321.214817 | AE77: 1178.70123 | AI77: 678.7851835
C78: 43 | E78: 176.7281148 | G78: 16.59988812 | I78: 6856.750416 | K78: 1456.35371 | O78: 3143.249584 | W78: 43 | Y78: 246.6040753 | AA78: 3.393925842 | AC78: 9567.818892 | AE78: 1182.095155 | AI78: 432.1811082
C79: 44 | E79: 177.6117554 | G79: 15.71624757 | I79: 7034.362171 | K79: 1472.069958 | O79: 2965.637829 | W79: 44 | Y79: 247.8370956 | AA79: 2.160905493 | AC79: 9815.655987 | AE79: 1184.256061 | AI79: 184.3440126
C80: 45 | E80: 178.4998141 | G80: 14.82818881 | I80: 7212.861985 | K80: 1486.898147 | O80: 2787.138015 | W80: 45 | Y80: 184.3440126 | AA80: 0.9217200426 | AC80: 10000 | AE80: 1185.177781 | AI80: 0
C81: 46 | E81: 179.3923132 | G81: 13.93568976 | I81: 7392.254298 | K81: 1500.833836 | O81: 2607.745702 | W81: 46 | Y81: 0 | AA81: 0 | AC81: 10000 | AE81: 1185.177781 | AI81: 0
C82: 47 | E82: 180.2892747 | G82: 13.03872822 | I82: 7572.543573 | K82: 1513.872565 | O82: 2427.456427 | W82: 47 | Y82: 0 | AA82: 0 | AC82: 10000 | AE82: 1185.177781 | AI82: 0
C83: 48 | E83: 181.1907211 | G83: 12.13728186 | I83: 7753.734294 | K83: 1526.009846 | O83: 2246.265706 | W83: 48 | Y83: 0 | AA83: 0 | AC83: 10000 | AE83: 1185.177781 | AI83: 0
C84: 49 | E84: 182.0966747 | G84: 11.23132828 | I84: 7935.830969 | K84: 1537.241175 | O84: 2064.169031 | W84: 49 | Y84: 0 | AA84: 0 | AC84: 10000 | AE84: 1185.177781 | AI84: 0
C85: 50 | E85: 183.007158 | G85: 10.32084493 | I85: 8118.838127 | K85: 1547.56202 | O85: 1881.161873 | W85: 50 | Y85: 0 | AA85: 0 | AC85: 10000 | AE85: 1185.177781 | AI85: 0
C86: 51 | E86: 183.9221938 | G86: 9.405809156 | I86: 8302.760321 | K86: 1556.967829 | O86: 1697.239679 | W86: 51 | Y86: 0 | AA86: 0 | AC86: 10000 | AE86: 1185.177781 | AI86: 0
C87: 52 | E87: 184.8418047 | G87: 8.486198207 | I87: 8487.602125 | K87: 1565.454027 | O87: 1512.397875 | W87: 52 | Y87: 0 | AA87: 0 | AC87: 10000 | AE87: 1185.177781 | AI87: 0
C88: 53 | E88: 185.7660137 | G88: 7.561989204 | I88: 8673.368139 | K88: 1573.016016 | O88: 1326.631861 | W88: 53 | Y88: 0 | AA88: 0 | AC88: 10000 | AE88: 1185.177781 | AI88: 0
C89: 54 | E89: 186.6948438 | G89: 6.633159157 | I89: 8860.062983 | K89: 1579.649175 | O89: 1139.937017 | W89: 54 | Y89: 0 | AA89: 0 | AC89: 10000 | AE89: 1185.177781 | AI89: 0
C90: 55 | E90: 187.628318 | G90: 5.699684959 | I90: 9047.691301 | K90: 1585.34886 | O90: 952.3086992 | W90: 55 | Y90: 0 | AA90: 0 | AC90: 10000 | AE90: 1185.177781 | AI90: 0
C91: 56 | E91: 188.5664595 | G91: 4.76154339 | I91: 9236.25776 | K91: 1590.110404 | O91: 763.7422397 | W91: 56 | Y91: 0 | AA91: 0 | AC91: 10000 | AE91: 1185.177781 | AI91: 0
C92: 57 | E92: 189.5092918 | G92: 3.818711113 | I92: 9425.767052 | K92: 1593.929115 | O92: 574.2329479 | W92: 57 | Y92: 0 | AA92: 0 | AC92: 10000 | AE92: 1185.177781 | AI92: 0
C93: 58 | E93: 190.4568383 | G93: 2.871164675 | I93: 9616.22389 | K93: 1596.80028 | O93: 383.7761096 | W93: 58 | Y93: 0 | AA93: 0 | AC93: 10000 | AE93: 1185.177781 | AI93: 0
C94: 59 | E94: 191.4091224 | G94: 1.918880505 | I94: 9807.633013 | K94: 1598.71916 | O94: 192.3669872 | W94: 59 | Y94: 0 | AA94: 0 | AC94: 10000 | AE94: 1185.177781 | AI94: 0
C95: 60 | E95: 192.366168 | G95: 0.9618349144 | I95: 9999.999181 | K95: 1599.680995 | O95: 0.0008191695928 | W95: 60 | Y95: 0 | AA95: 0 | AC95: 10000 | AE95: 1185.177781 | AI95: 0

Sheet Personal-Loan
M3: Calculated | O3: Other/Alt | AG3: Calculated | AI3: Other/Alt
C4: Mortgage/Amortized Loan Analysis Worksheet | K4: Loan Parameters | M4: Adjustments | O4: Calculations | Q4: Description | W4: Mortgage/Amortized Loan Analysis Worksheet | AE4: Loan Parameters | AG4: Adjustments | AI4: Calculations | AK4: Description
G7: Principal | K7: 3000 | M7: =IF(OR(K$7="", K$7<K$8), "", K$7-K$8) -> 3000 | AA7: Principal | AE7: 3000 | AG7: =IF(OR(AE$7="", AE$7<AE$8), "", AE$7-AE$8) -> 3000
G8: Down Payment | AA8: Down Payment
G10: Nominal Rate Per Period (R) | I10: APR | K10: 16.44 | M10: =K$10/100 -> 0.1644 | O10: =CalcEffectiveInterestRatePerPeriod(M$10,K$16) -> 0.1773710549 | Q10: CalcEffectiveInterestRatePerPeriod | AA10: Nominal Rate Per Period (R) | AC10: APR | AE10: 16.44 | AG10: =AE$10/100 -> 0.1644 | AI10: =CalcEffectiveInterestRatePerPeriod(AG$10,AE$16) -> 0.1773710549 | AK10: CalcEffectiveInterestRatePerPeriod
G12: Number of Payments | I12: years | K12: 3 | M12: =IF(K$12="","",K$12*K$15) -> 36 | O12: =IF(OR(M$7="", M$10=""), "", CalcNumberOfPeriods(M$7,M$21, M$10,K$15)) -> 36.00001907 | Q12: CalcNumberOfPeriods | AA12: Number of Payments | AC12: years | AE12: 3 | AG12: =IF(AE$12="","",AE$12*AE$15) -> 36 | AI12: =IF(OR(AG$7="", AG$10=""), "", CalcNumberOfPeriods(AG$7,AG$21, AG$10,AE$15)) -> 36.00001907 | AK12: CalcNumberOfPeriods
I13: months | K13: 36 | AC13: months | AE13: 36
I15: payments per period | K15: 12 | O15: =IF(OR(M$10="", K$16=""), "", CalcPeriodicInterestRate(M$10, K$16)) -> 0.01370000001 | Q15: CalcPeriodicInterestRate | AC15: payments per period | AE15: 12 | AI15: =IF(OR(AG$10="", AE$16=""), "", CalcPeriodicInterestRate(AG$10, AE$16)) -> 0.01370000001 | AK15: CalcPeriodicInterestRate
I16: compounding per period | K16: 12 | O16: =IF(OR(M$10="", K$15="", K$16=""), "", CalcPeriodicEquivalentInterestRate(M$10, K$16, K$15)) -> 0.01370000001 | Q16: CalcPeriodicEquivalentInterestRate | AC16: compounding per period | AE16: 12 | AI16: =IF(OR(AG$10="", AE$15="", AE$16=""), "", CalcPeriodicEquivalentInterestRate(AG$10, AE$16, AE$15)) -> 0.01370000001 | AK16: CalcPeriodicEquivalentInterestRate
G18: Periodic Interest Rate | I18: P | K18: =M$18 -> 0.01370000001 | M18: =IF(OR(M$10="", K$15="", K$16=""), "", CalcPeriodicEquivalentInterestRate(M$10, K$16, K$15)) -> 0.01370000001 | O18: =IF(OR(M$10="", M$12="", K$12=""), "", IF(K$12=0,"",M$10/(M$12/K$12))) -> 0.0137 | AA18: Periodic Interest Rate | AC18: P | AE18: =AG$18 -> 0.01370000001 | AG18: =IF(OR(AG$10="", AE$15="", AE$16=""), "", CalcPeriodicEquivalentInterestRate(AG$10, AE$16, AE$15)) -> 0.01370000001 | AI18: =IF(OR(AG$10="", AG$12="", AE$12=""), "", IF(AE$12=0,"",AG$10/(AG$12/AE$12))) -> 0.0137
K21: Regular Payment Amount | M21: =IF(OR(M$7="",M$12=""),"",CalcLoanPayment(M$7,M$10,M$12,K$15,K$16)) -> 106.1239471 | O21: =IF(OR(M$7="",M$10="",M$12=""),"", IF(M$10=0,(M$7/M$12),((M$10/K$15)*M$7)/(1-((1+ (M$10/K$15))^(-M$12))))) -> 106.123944 | AE21: Regular Payment Amount | AG21: =IF(OR(AG$7="",AG$12=""),"",CalcLoanPayment(AG$7,AG$10,AG$12,AE$15,AE$16)) -> 106.1239471 | AI21: =IF(OR(AG$7="",AG$10="",AG$12=""),"", IF(AG$10=0,(AG$7/AG$12),((AG$10/AE$15)*AG$7)/(1-((1+ (AG$10/AE$15))^(-AG$12))))) -> 106.123944
K22: Extra Regular Payment Amount | O22: =IF(OR(K$13="", O$24=""),"",TEXT((K$13-O$24)/12, "#0.0") & " yrs saved") -> 0.0 yrs saved | AE22: Extra Regular Payment Amount | AG22: 13.88 | AI22: =IF(OR(AE$13="", AI$24=""),"",TEXT((AE$13-AI$24)/12, "#0.0") & " yrs saved") -> 0.4 yrs saved
K24: Total Regular Payment Amount, (adjusted number of payments) | M24: =IF(M$21="","", SUM(M$21:M$22)) -> 106.1239471 | O24: =IF(OR(M$7="",M$10="",M$24="",K$15=""),"", CalcNumberOfPeriods(M$7, M$24, M$10, K$15)) -> 36.00001907 | AE24: Total Regular Payment Amount, (adjusted number of payments) | AG24: =IF(AG$21="","", SUM(AG$21:AG$22)) -> 120.0039471 | AI24: =IF(OR(AG$7="",AG$10="",AG$24="",AE$15=""),"", CalcNumberOfPeriods(AG$7, AG$24, AG$10, AE$15)) -> 30.81454277
K26: Total Repaid | M26: 3820.460449 | O26: =IF(M$21="","", M$21*M$12) -> 3820.462097 | AE26: Total Repaid | AG26: 3136.300912 | AI26: =IF(AG$21="","", AG$21*AG$12) -> 3820.462097
K27: Total Interest Paid | M27: 820.4624181 | O27: =IF(O$26="","", O$26-M$7) -> 820.4620972 | Q27: =M$27/K$12 -> 273.4874727 | R27: per year | AE27: Total Interest Paid | AG27: 136.3009124 | AI27: =IF(AI$26="","", AI$26-AG$7) -> 820.4620972 | AK27: =AG$27/AE$12 -> 45.43363746 | AL27: per year
K28: Interest as % of Principal | M28: =IF(M$26="","", M$27/M$7) -> 0.2734874727 | O28: =IF(O$26="","", O$27/M$7) -> 0.2734873657 | Q28: =Q$27/12 -> 22.79062272 | R28: per month | AE28: Interest as % of Principal | AG28: =IF(AG$26="","", AG$27/AG$7) -> 0.04543363746 | AI28: =IF(AI$26="","", AI$27/AG$7) -> 0.2734873657 | AK28: =AK$27/12 -> 3.786136455 | AL28: per month
I31: Principal | K31: Interest | M31: Irregular Payments | AC31: Principal | AE31: Interest | AG31: Irregular Payments
E32: Principal | G32: Interest | I32: Paid | K32: Paid | M32: in excess of | O32: Principal | Y32: Principal | AA32: Interest | AC32: Paid | AE32: Paid | AG32: in excess of | AI32: Principal
C33: Period | E33: (this payment) | G33: (this payment) | I33: (cumulative) | K33: (cumulative) | M33: Principal | O33: Balance | W33: Period | Y33: (this payment) | AA33: (this payment) | AC33: (cumulative) | AE33: (cumulative) | AG33: Principal | AI33: Balance
O35: =M7 -> 3000 | AI35: =AG7 -> 3000
C36: 1 | E36: 65.02390134 | G36: 41.10000003 | I36: 65.02390134 | K36: 41.10000003 | O36: 2934.976099 | W36: 1 | Y36: 578.9039 | AA36: 41.10000003 | AC36: 578.9039 | AE36: 41.10000003 | AG36: 500 | AI36: 2421.0961 | AK36: august
C37: 2 | E37: 65.91472878 | G37: 40.20917258 | I37: 130.9386301 | K37: 81.30917261 | O37: 2869.06137 | W37: 2 | Y37: 586.8349 | AA37: 33.1690166 | AC37: 1165.7388 | AE37: 74.26901663 | AG37: 500 | AI37: 1834.2612 | AK37: september
C38: 3 | E38: 66.81776057 | G38: 39.3061408 | I38: 197.7563907 | K38: 120.6153134 | O38: 2802.243609 | W38: 3 | Y38: 594.8745 | AA38: 25.12937846 | AC38: 1760.6133 | AE38: 99.39839509 | AG38: 500 | AI38: 1239.3867 | AK38: october
C39: 4 | E39: 67.73316389 | G39: 38.39073748 | I39: 265.4895546 | K39: 159.0060509 | O39: 2734.510445 | W39: 4 | Y39: 378.0243 | AA39: 16.9795978 | AC39: 2138.6376 | AE39: 116.3779929 | AG39: 275 | AI39: 861.3624 | AK39: november
C40: 5 | E40: 68.66110824 | G40: 37.46279313 | I40: 334.1506628 | K40: 196.468844 | O40: 2665.849337 | W40: 5 | Y40: 383.2032 | AA40: 11.80066489 | AC40: 2521.8408 | AE40: 128.1786578 | AG40: 275 | AI40: 478.1592 | AK40: december
C41: 6 | E41: 69.60176542 | G41: 36.52213595 | I41: 403.7524282 | K41: 232.99098 | O41: 2596.247572 | W41: 6 | Y41: 363.4531 | AA41: 6.550781045 | AC41: 2885.2939 | AE41: 134.7294388 | AG41: 250 | AI41: 114.7061 | AK41: january
C42: 7 | E42: 70.55530961 | G42: 35.56859176 | I42: 474.3077378 | K42: 268.5595717 | O42: 2525.692262 | W42: 7 | Y42: 114.7061 | AA42: 1.571473571 | AC42: 3000 | AE42: 136.3009124 | AI42: 0 | AK42: february
C43: 8 | E43: 71.52191735 | G43: 34.60198402 | I43: 545.8296552 | K43: 303.1615557 | O43: 2454.170345 | W43: 8 | Y43: 0 | AA43: 0 | AC43: 3000 | AE43: 136.3009124 | AI43: 0 | AK43: march
C44: 9 | E44: 72.50176762 | G44: 33.62213375 | I44: 618.3314228 | K44: 336.7836895 | O44: 2381.668577 | W44: 9 | Y44: 0 | AA44: 0 | AC44: 3000 | AE44: 136.3009124 | AI44: 0 | AK44: april
C45: 10 | E45: 73.49504183 | G45: 32.62885953 | I45: 691.8264646 | K45: 369.412549 | O45: 2308.173535 | W45: 10 | Y45: 0 | AA45: 0 | AC45: 3000 | AE45: 136.3009124 | AI45: 0 | AK45: may
C46: 11 | E46: 74.50192391 | G46: 31.62197746 | I46: 766.3283886 | K46: 401.0345265 | O46: 2233.671611 | W46: 11 | Y46: 0 | AA46: 0 | AC46: 3000 | AE46: 136.3009124 | AI46: 0 | AK46: june
C47: 12 | E47: 75.52260027 | G47: 30.6013011 | I47: 841.8509888 | K47: 431.6358276 | O47: 2158.149011 | W47: 12 | Y47: 0 | AA47: 0 | AC47: 3000 | AE47: 136.3009124 | AI47: 0 | AK47: july
C48: 13 | E48: 76.55725989 | G48: 29.56664148 | I48: 918.4082487 | K48: 461.2024691 | O48: 2081.591751 | W48: 13 | Y48: 0 | AA48: 0 | AC48: 3000 | AE48: 136.3009124 | AI48: 0
C49: 14 | E49: 77.60609435 | G49: 28.51780701 | I49: 996.0143431 | K49: 489.7202761 | O49: 2003.985657 | W49: 14 | Y49: 0 | AA49: 0 | AC49: 3000 | AE49: 136.3009124 | AI49: 0
C50: 15 | E50: 78.66929785 | G50: 27.45460352 | I50: 1074.683641 | K50: 517.1748796 | O50: 1925.316359 | W50: 15 | Y50: 0 | AA50: 0 | AC50: 3000 | AE50: 136.3009124 | AI50: 0
C51: 16 | E51: 79.74706723 | G51: 26.37683414 | I51: 1154.430708 | K51: 543.5517137 | O51: 1845.569292 | W51: 16 | Y51: 0 | AA51: 0 | AC51: 3000 | AE51: 136.3009124 | AI51: 0
C52: 17 | E52: 80.83960205 | G52: 25.28429932 | I52: 1235.27031 | K52: 568.8360131 | O52: 1764.72969 | W52: 17 | Y52: 0 | AA52: 0 | AC52: 3000 | AE52: 136.3009124 | AI52: 0
C53: 18 | E53: 81.9471046 | G53: 24.17679677 | I53: 1317.217415 | K53: 593.0128098 | O53: 1682.782585 | W53: 18 | Y53: 0 | AA53: 0 | AC53: 3000 | AE53: 136.3009124 | AI53: 0
C54: 19 | E54: 83.06977993 | G54: 23.05412143 | I54: 1400.287195 | K54: 616.0669313 | O54: 1599.712805 | W54: 19 | Y54: 0 | AA54: 0 | AC54: 3000 | AE54: 136.3009124 | AI54: 0
C55: 20 | E55: 84.20783592 | G55: 21.91606545 | I55: 1484.495031 | K55: 637.9829967 | O55: 1515.504969 | W55: 20 | Y55: 0 | AA55: 0 | AC55: 3000 | AE55: 136.3009124 | AI55: 0
C56: 21 | E56: 85.36148327 | G56: 20.7624181 | I56: 1569.856514 | K56: 658.7454148 | O56: 1430.143486 | W56: 21 | Y56: 0 | AA56: 0 | AC56: 3000 | AE56: 136.3009124 | AI56: 0
C57: 22 | E57: 86.53093559 | G57: 19.59296577 | I57: 1656.38745 | K57: 678.3383806 | O57: 1343.61255 | W57: 22 | Y57: 0 | AA57: 0 | AC57: 3000 | AE57: 136.3009124 | AI57: 0
C58: 23 | E58: 87.71640941 | G58: 18.40749196 | I58: 1744.103859 | K58: 696.7458725 | O58: 1255.896141 | W58: 23 | Y58: 0 | AA58: 0 | AC58: 3000 | AE58: 136.3009124 | AI58: 0
C59: 24 | E59: 88.91812422 | G59: 17.20577715 | I59: 1833.021983 | K59: 713.9516497 | O59: 1166.978017 | W59: 24 | Y59: 0 | AA59: 0 | AC59: 3000 | AE59: 136.3009124 | AI59: 0
C60: 25 | E60: 90.13630252 | G60: 15.98759884 | I60: 1923.158286 | K60: 729.9392485 | O60: 1076.841714 | W60: 25 | Y60: 0 | AA60: 0 | AC60: 3000 | AE60: 136.3009124 | AI60: 0
C61: 26 | E61: 91.37116987 | G61: 14.7527315 | I61: 2014.529456 | K61: 744.69198 | O61: 985.4705445 | W61: 26 | Y61: 0 | AA61: 0 | AC61: 3000 | AE61: 136.3009124 | AI61: 0
C62: 27 | E62: 92.6229549 | G62: 13.50094647 | I62: 2107.15241 | K62: 758.1929265 | O62: 892.8475896 | W62: 27 | Y62: 0 | AA62: 0 | AC62: 3000 | AE62: 136.3009124 | AI62: 0
C63: 28 | E63: 93.89188938 | G63: 12.23201199 | I63: 2201.0443 | K63: 770.4249385 | O63: 798.9557002 | W63: 28 | Y63: 0 | AA63: 0 | AC63: 3000 | AE63: 136.3009124 | AI63: 0
C64: 29 | E64: 95.17820827 | G64: 10.9456931 | I64: 2296.222508 | K64: 781.3706316 | O64: 703.7774919 | W64: 29 | Y64: 0 | AA64: 0 | AC64: 3000 | AE64: 136.3009124 | AI64: 0
C65: 30 | E65: 96.48214972 | G65: 9.641751647 | I65: 2392.704658 | K65: 791.0123832 | O65: 607.2953422 | W65: 30 | Y65: 0 | AA65: 0 | AC65: 3000 | AE65: 136.3009124 | AI65: 0
C66: 31 | E66: 97.80395517 | G66: 8.319946195 | I66: 2490.508613 | K66: 799.3323294 | O66: 509.491387 | W66: 31 | Y66: 0 | AA66: 0 | AC66: 3000 | AE66: 136.3009124 | AI66: 0
C67: 32 | E67: 99.14386936 | G67: 6.980032008 | I67: 2589.652482 | K67: 806.3123614 | O67: 410.3475177 | W67: 32 | Y67: 0 | AA67: 0 | AC67: 3000 | AE67: 136.3009124 | AI67: 0
C68: 33 | E68: 100.5021404 | G68: 5.621760996 | I68: 2690.154623 | K68: 811.9341224 | O68: 309.8453773 | W68: 33 | Y68: 0 | AA68: 0 | AC68: 3000 | AE68: 136.3009124 | AI68: 0
C69: 34 | E69: 101.8790197 | G69: 4.244881672 | I69: 2792.033642 | K69: 816.1790041 | O69: 207.9663576 | W69: 34 | Y69: 0 | AA69: 0 | AC69: 3000 | AE69: 136.3009124 | AI69: 0
C70: 35 | E70: 103.2747623 | G70: 2.849139101 | I70: 2895.308405 | K70: 819.0281432 | O70: 104.6915953 | W70: 35 | Y70: 0 | AA70: 0 | AC70: 3000 | AE70: 136.3009124 | AI70: 0
C71: 36 | E71: 104.6896265 | G71: 1.434274857 | I71: 2999.998031 | K71: 820.4624181 | O71: 0.001968832655 | W71: 36 | Y71: 0 | AA71: 0 | AC71: 3000 | AE71: 136.3009124 | AI71: 0

Sheet Should I
AJ2: Officer Basic Pay Rates, 2020 | AM2: What will my Income and Real monthly Cash Flow look like? | AQ2: Military Pay Calculator for 2020 | BI2: O-2, > 2yrs | BK2: Officer Basic Pay Rates, 2020
M3: Calculated | O3: Other/Alt | AJ3: 39445.2 | BK3: 51760.8
C4: Should I take the Loan? | K4: Loan Parameters | M4: Adjustments | O4: Calculations | V4: What if I Reinvested the Loan? | AJ4: Tax Form Calculator | AN4: Earnings & Income | BK4: Tax Form Calculator
AH5: 0.11 | AJ5: Tax deferred retirement: | BI5: 0.11 | BK5: Tax deferred retirement:
AB6: Rate of Return from Reinvestment | AD6: 0.062 | AJ6: =AJ3*AH5 -> 4338.972 | AQ6: Monthly Gross based on Previous Calculations | AS6: =AJ19/12 -> 2463.4515 | BK6: =BK3*BI5 -> 5693.688 | BM6: Monthly Gross based on O-2, > 2 years | BO6: =BK19/12 -> 3188.7385
G7: Principal | K7: 36000 | M7: =IF(OR(K$7="", K$7<K$8), "", K$7-K$8) -> 36000 | AB7: Rate of Inflation | AD7: 0.02 | AI7: percentage of Net Earnings: | AJ7: =AJ6/AJ18 -> 0.1279918019 | AQ7: Bi-Monthly Pay (15th & EOM) | AS7: =AS6/2 -> 1231.72575 | BJ7: percentage of Net Earnings: | BK7: =BK6/BK18 -> 0.1295240175 | BM7: Bi-Monthly Pay (15th & EOM) | BO7: =BO6/2 -> 1594.36925
G8: Down Payment | K8: 0 | AB8: approximate Tax Rate | AD8: =AJ15 -> 0.1405699553 | AJ8: Total Federal Tax Due: | BK8: Total Federal Tax Due:
AJ9: 2527.25 | AQ9: BAS (basic allowance for sustenance) | AS9: 256.68 | AU9: ▪ | AV9: as of 2020, $3080.16 (not quite enough but better than nothing!) | BK9: 3842.55 | BM9: BAS (basic allowance for sustenance) | BO9: 256.68
G10: Nominal Rate Per Period (R) | I10: APR | K10: 0.75 | M10: =K$10/100 -> 0.0075 | O10: =CalcEffectiveInterestRatePerPeriod(M$10,K$16) -> 0.007525834721 | AJ10: Total SS Tax Due: | AQ10: BAH (basic allowance for housing) | AS10: 0 | AU10: ▪ | AV10: 2017 National Defense Authorization Act included a provision to overhaul the BAH | BK10: Total SS Tax Due: | BM10: BAH (basic allowance for housing) | BO10: 0
AB11: Raw Return from Reinvestment | AD11: =FV(AD6/12,M12,0,-M7) -> 49044.14706 | AJ11: 2445.6 | AV11: system to only cover actual rent expenses, rather than a flat amount, similar to the | BK11: 3209.17
G12: Number of Payments | I12: years | K12: 5 | M12: =IF(K$12="","",K$12*K$15) -> 60 | O12: =IF(OR(M$7="", M$10=""), "", CalcNumberOfPeriods(M$7,M$21, M$10,K$15)) -> 59.99999619 | AB12: Gross Profit from Reinvestment | AD12: =AD11-M7 -> 13044.14706 | AJ12: Total Medicare Tax Due: | AV12: way that Overseas Housing Allowance currently works. | BK12: Total Medicare Tax Due:
I13: months | K13: 60 | AB13: Estimated Tax Liability against Profits | AD13: =AD12*AD8 -> 1833.615169 | AJ13: 571.96 | AV13: These changes could occur as early as 2018. | BK13: 750.53
AB14: (Nominal) Net Profit from Reinvestment | AD14: =AD12-AD13 -> 11210.53189 | AU14: ▪ | AV14: If there is an excess of base housing, a housing allowance may not be approved,
I15: payments per period | K15: 12 | O15: =IF(OR(M$10="", K$16=""), "", CalcPeriodicInterestRate(M$10, K$16)) -> 0.000624999986 | AD15: tax liability | AF15: no tax liability | AI15: Effective Tax Rate: | AJ15: =AJ17/AJ3 -> 0.1405699553 | AV15: especially for new and young officers. Something to keep in mind. | BJ15: Effective Tax Rate: | BK15: =BK17/BK3 -> 0.1507366579
I16: compounding per period | K16: 12 | O16: =IF(OR(M$10="", K$15="", K$16=""), "", CalcPeriodicEquivalentInterestRate(M$10, K$16, K$15)) -> 0.000624999986 | AB16: (Nominal) Net Profit from Reinvestment against Loan | AD16: =AD14-M27 -> 10520.06579 | AF16: =AD12-M27 -> 12353.68096 | AU16: ▪ | AV16: Since BAH offsets an actual, non discretionary expense, whether or not the overhaul
AB17: (Inflation Adjusted) Real Profit from Reinvestment | AD17: =FV(-AD7,K12,0,-AD16) -> 9509.306255 | AI17: Total Tax Liability: | AJ17: =SUM(AJ13,AJ11,AJ9) -> 5544.81 | AV17: occurs/occurred, we'll just leave this as zero and keep it out of the calculations | BJ17: Total Tax Liability: | BK17: =SUM(BK13,BK11,BK9) -> 7802.25
G18: Periodic Interest Rate | I18: P | K18: =M$18 -> 0.000624999986 | M18: =IF(OR(M$10="", K$15="", K$16=""), "", CalcPeriodicEquivalentInterestRate(M$10, K$16, K$15)) -> 0.000624999986 | O18: =IF(OR(M$10="", M$12="", K$12=""), "", IF(K$12=0,"",M$10/(M$12/K$12))) -> 0.000625 | AI18: Net Earnings: | AJ18: =AJ3-AJ17 -> 33900.39 | BJ18: Net Earnings: | BK18: =BK3-BK17 -> 43958.55
AI19: Take Home Pay: | AJ19: =AJ18-AJ6 -> 29561.418 | AQ19: Net Bi-Monthly Pay | AS19: =SUM(AS6, AS9)/2 -> 1360.06575 | BJ19: Take Home Pay: | BK19: =BK18-BK6 -> 38264.862 | BM19: Net Bi-Monthly Pay | BO19: =SUM(BO6, BO9)/2 -> 1722.70925
K21: Regular Payment Amount | M21: =IF(OR(M$7="",M$12=""),"",CalcLoanPayment(M$7,M$10,M$12,K$15,K$16)) -> 611.5077515 | O21: =IF(OR(M$7="",M$10="",M$12=""),"", IF(M$10=0,(M$7/M$12),((M$10/K$15)*M$7)/(1-((1+ (M$10/K$15))^(-M$12))))) -> 611.5077694
K22: Extra Regular Payment Amount | O22: =IF(OR(K$13="", O$24=""),"",TEXT((K$13-O$24)/12, "#0.0") & " yrs saved") -> 0.0 yrs saved | AN22: Recommended Savings & Fiscal Responsibilities
V23: What if I used it to buy a car?
K24: Total Regular Payment Amount, (adjusted number of payments) | M24: =IF(M$21="","", SUM(M$21:M$22)) -> 611.5077515 | O24: =IF(OR(M$7="",M$10="",M$24="",K$15=""),"", CalcNumberOfPeriods(M$7, M$24, M$10, K$15)) -> 59.99999619 | AO24: Long-Term non-Discretionary Retirement/Wealth Savings Targets
AB25: Current Regular Auto Loan Rates | AS25: per pay period
K26: Total Repaid | M26: 36690.4661 | O26: =IF(M$21="","", M$21*M$12) -> 36690.46509 | AB26: Navy Federal | AD26: 0.0289 | AF26: 37-60 month term | AQ26: Individual Investment Savings | AS26: 50 | AV26: =AS26*2*12 -> 1200 | AX26: per Year | BE26: currently USAA/Schwab Brokerage Account
K27: Total Interest Paid | M27: 690.4660978 | O27: =IF(O$26="","", O$26-M$7) -> 690.4650879 | Q27: =M$27/K$12 -> 138.0932196 | R27: per year | AQ27: Individual Investment/Future Wealth Savings | AS27: 15 | AV27: =AS27*2*12 -> 360 | AX27: per Year | BE27: whole life banking/insurance policy
K28: Interest as % of Principal | M28: =IF(M$26="","", M$27/M$7) -> 0.01917961383 | O28: =IF(O$26="","", O$27/M$7) -> 0.01917958577 | Q28: =Q$27/12 -> 11.5077683 | R28: per month | AB28: Amount Financed | AD28: 36000 | AF28: Based on $46k build price, 2020 Toyota Tacoma Pro
AD29: 60 | AF29: Term, Length of Loan in Months | AS29: =SUM(AS26:AS27) -> 65 | AU29: ♦ | AV29: Total Long-Term non-Discretionary Retirement/Wealth Savings per Pay Period
AD30: =IF(OR(AD$26="",AD$28=""),"",CalcLoanPayment(AD$28,AD$26,AD$29,12,12)) -> 645.114624 | AF30: Calculated Monthly Payment | AS30: =AS29/AS19 -> 0.04779180712 | AV30: Percent of Net Pay
I31: Principal | K31: Interest | M31: Irregular Payments | AD31: =(AD30*AD29)-AD28 -> 2706.877441 | AF31: Total Interest Paid | AS31: =AJ7+AS30 -> 0.175783609 | AV31: Total Long-Term non-Discretionary Retirement/Wealth Savings Percentage of Net Earnings
E32: Principal | G32: Interest | I32: Paid | K32: Paid | M32: in excess of | O32: Principal | AV32: 0.25 | AX32: How Much Of Your Income Should You Save?
C33: Period | E33: (this payment) | G33: (this payment) | I33: (cumulative) | K33: (cumulative) | M33: Principal | O33: Balance
AB34: Monthly Cash Flow Savings over Regular Auto Loan | AD34: =AD30-M21 -> 33.60687256 | AF34: =AD34/2 -> 16.80343628 | AH34: Savings per Pay Period
O35: =M7 -> 36000 | AB35: Interest Savings over Regular Auto Loan | AD35: =AD31-M27 -> 2016.411344 | AO35: Long & Short-Term, Non-Discretionary Cost of Living Expenses
C36: 1 | E36: 589.007813 | G36: 22.4999995 | I36: 589.007813 | K36: 22.4999995 | O36: 35410.99219 | AQ36: Long-term Savings / Initial Seed for 1st 3-Month Emergency Fund | AS36: 35 | AV36: =AS36*2*12 -> 840 | AX36: per Year | AZ36: =AV36*5 -> 4200 | BA36: every | BB36: 5 | BC36: years | BE36: currently AMEX
C37: 2 | E37: 589.3759429 | G37: 22.13186962 | I37: 1178.383756 | K37: 44.63186912 | O37: 34821.61624 | AQ37: Automobile Maintenance Fund | AS37: =AV37/(AV38*24) -> 50 | AV37: 6000 | AX37: Savings Goal
C38: 3 | E38: 589.7443028 | G38: 21.76350967 | I38: 1768.128059 | K38: 66.39537879 | O38: 34231.87194 | AV38: 5 | AX38: Time frame in years (best time is during full warranty of new automobile)
C39: 4 | E39: 590.112893 | G39: 21.39491949 | I39: 2358.240952 | K39: 87.79029827 | O39: 33641.75905 | AV39: How Much Is the Average Car Repair Bill?
C40: 5 | E40: 590.4817136 | G40: 21.02609894 | I40: 2948.722665 | K40: 108.8163972 | O40: 33051.27733 | AO40: Prepaids Fund
C41: 6 | E41: 590.8507646 | G41: 20.65704787 | I41: 3539.57343 | K41: 129.4734451 | O41: 32460.42657 | V41: What if I did BOTH, Took the Loan to Reinvest and Took out a Regular Auto Loan to buy a car? | AQ41: Auto Insurance | AS41: =AV41/12 -> 66.66666667 | AV41: 800 | AX41: Est. GEICO, AD as O-1, at Pearland Address for 2020 Toyota Highlander
C42: 7 | E42: 591.2200463 | G42: 20.28776615 | I42: 4130.793476 | K42: 149.7612112 | O42: 31869.20652 | AB42: tax liability | AQ42: Uniform Fund | AS42: =AV42/24 -> 20.83333333 | AV42: 500 | AX42: Estimate based on asking a young Army LT
C43: 8 | E43: 591.5895589 | G43: 19.91825363 | I43: 4722.383035 | K43: 169.6794649 | O43: 31277.61696 | AB43: Reduction of Net Profit by Remaining Car Loan Interest | AD43: =AD16-AD35 -> 8503.65445 | AF43: =FV(-$AD$7,$K$12,0,-AD43) -> 7686.630106 | AH43: (Inflation Adjusted) Real Profit | AQ43: Gift/Holiday Fund | AS43: =AV43/24 -> 16.66666667 | AV43: 400 | AX43: These don't always have to provide an exact amount, just help ease the pain!
C44: 9 | E44: 591.9593023 | G44: 19.54851017 | I44: 5314.342337 | K44: 189.227975 | O44: 30685.65766 | AB44: no tax liability
C45: 10 | E45: 592.3292769 | G45: 19.17853561 | I45: 5906.671614 | K45: 208.4065106 | O45: 30093.32839 | AB45: Reduction of Net Profit by Remaining Car Loan Interest | AD45: =AF16-AD35 -> 10337.26962 | AF45: =FV(-$AD$7,$K$12,0,-AD45) -> 9344.072991 | AH45: (Inflation Adjusted) Real Profit
C46: 11 | E46: 592.6994827 | G46: 18.80832982 | I46: 6499.371097 | K46: 227.2148405 | O46: 29500.6289 | AO46: Known Monthly Static Expenses | AQ46: Credit Monitoring | AS46: =AV46/2 -> 9.18 | AV46: 18.36 | AX46: AMEX Credit Secure Credit Monitoring Service
C47: 12 | E47: 593.0699198 | G47: 18.43789265 | I47: 7092.441017 | K47: 245.6527331 | O47: 28907.55898 | AQ47: Music Streaming | AS47: =AV47/2 -> 5.5 | AV47: 11 | AX47: Spotify Premium
C48: 13 | E48: 593.4405885 | G48: 18.06722396 | I48: 7685.881605 | K48: 263.7199571 | O48: 28314.11839 | AB48: Required Payments for both Career and Auto Loan | AD48: =AD30+M21 -> 1256.622375 | AF48: =(AS65*2)-AD48 -> 450.8157912 | AH48: Remaining Discretionary Cash/Month | AQ48: Groceries/Food | AS48: =AV48/2 -> 150 | AV48: 300 | AX48: Est. Grocery Food budget
C49: 14 | E49: 593.8114889 | G49: 17.6963236 | I49: 8279.693094 | K49: 281.4162807 | O49: 27720.30691 | AF49: differnece | AQ49: Automobile Fuel/Gas | AS49: =AV49/2 -> 62.5 | AV49: 125 | AX49: Est. Auto Fuel
C50: 15 | E50: 594.1826211 | G50: 17.32519143 | I50: 8873.875715 | K50: 298.7414721 | O50: 27126.12428 | AF50: =AF48/2 -> 225.4078956 | AH50: per Pay Period
C51: 16 | E51: 594.5539852 | G51: 16.9538273 | I51: 9468.429701 | K51: 315.6952994 | O51: 26531.5703 | AA51: O-2, < 2yrs | AB51: 45450
C52: 17 | E52: 594.9255814 | G52: 16.58223107 | I52: 10063.35528 | K52: 332.2775305 | O52: 25936.64472 | AA52: O-2, 2 yrs | AB52: 51760.8 | AF52: =((BO19-AS64)*2)-AD48 -> 1176.102791
C53: 18 | E53: 595.2974099 | G53: 16.21040259 | I53: 10658.65269 | K53: 348.4879331 | O53: 25341.34731 | AA53: O-2, 3 yrs | AB53: 59612.4 | AS53: =SUM(AS36:AS37,AS41:AS43,AS46:AS49) -> 416.3466667 | AU53: ♦ | AV53: Total Long & Short-Term, Non-Discretionary Cost of Living Expenses per Pay Period
C54: 19 | E54: 595.6694708 | G54: 15.83834171 | I54: 11254.32216 | K54: 364.3262748 | O54: 24745.67784
C55: 20 | E55: 596.0417642 | G55: 15.4660483 | I55: 11850.36393 | K55: 379.7923231 | O55: 24149.63607 | AB55: What if you skip the loan but invest $611/month?
C56: 21 | E56: 596.4142903 | G56: 15.09352221 | I56: 12446.77822 | K56: 394.8858453 | O56: 23553.22178 | AB56: Total account value after 5 yrs (60 mos) | AD56: =FV(AD6/12,M12,-611,0) -> 42849.32179 | AF56: =FV(-$AD$7,$K$12,0,-AD56) -> 38732.3931 | AH56: (Inflation Adjusted) Real Value | AO56: Additional Discretionary Flex-Savings
C57: 22 | E57: 596.7870492 | G57: 14.72076329 | I57: 13043.56527 | K57: 409.6066086 | O57: 22956.43473 | AB57: Nominal Profit | AD57: =AD56-M7 -> 6849.321795 | AF57: =FV(-$AD$7,$K$12,0,-AD57) -> 6191.244414 | AH57: (Inflation Adjusted) Real Profit | AQ57: Flex-Savings | AS57: 25 | AV57: =AS57*2*12 -> 600 | AX57: per Year | BE57: currently Discover
C58: 23 | E58: 597.1600411 | G58: 14.34777139 | I58: 13640.72531 | K58: 423.95438 | O58: 22359.27469
C59: 24 | E59: 597.5332661 | G59: 13.97454637 | I59: 14238.25857 | K59: 437.9289263 | O59: 21761.74143 | AS59: =SUM(AS57) -> 25 | AU59: ♦ | AV59: Total Additional Discretionary Flex-Savings
C60: 25 | E60: 597.9067244 | G60: 13.60108809 | I60: 14836.1653 | K60: 451.5300144 | O60: 21163.8347
C61: 26 | E61: 598.2804161 | G61: 13.22739639 | I61: 15434.44571 | K61: 464.7574108 | O61: 20565.55429
C62: 27 | E62: 598.6543414 | G62: 12.85347114 | I62: 16033.10006 | K62: 477.6108819 | O62: 19966.89994
C63: 28 | E63: 599.0285003 | G63: 12.47931219 | I63: 16632.12856 | K63: 490.0901941 | O63: 19367.87144
C64: 29 | E64: 599.4028931 | G64: 12.10491938 | I64: 17231.53145 | K64: 502.1951135 | O64: 18768.46855 | AQ64: Total ALL Savings per Pay Period | AS64: =SUM(AS29,AS53,AS59) -> 506.3466667 | AV64: =AS64/AS19 -> 0.3722957266 | AX64: Percent of Net Pay
C65: 30 | E65: 599.7775199 | G65: 11.73029258 | I65: 17831.30897 | K65: 513.9254061 | O65: 18168.69103 | AQ65: Discretionary Cash Flow per Pay Period | AS65: =AS19-AS64 -> 853.7190833
C66: 31 | E66: 600.1523809 | G66: 11.35543164 | I66: 18431.46135 | K66: 525.2808377 | O66: 17568.53865
C67: 32 | E67: 600.5274761 | G67: 10.98033641 | I67: 19031.98883 | K67: 536.2611741 | O67: 16968.01117
C68: 33 | E68: 600.9028058 | G68: 10.60500675 | I68: 19632.89163 | K68: 546.8661809 | O68: 16367.10837
C69: 34 | E69: 601.27837 | G69: 10.2294425 | I69: 20234.17 | K69: 557.0956234 | O69: 15765.83
C70: 35 | E70: 601.654169 | G70: 9.853643529 | I70: 20835.82417 | K70: 566.9492669 | O70: 15164.17583
C71: 36 | E71: 602.0302028 | G71: 9.477609682 | I71: 21437.85437 | K71: 576.4268766 | O71: 14562.14563
C72: 37 | E72: 602.4064717 | G72: 9.101340813 | I72: 22040.26085 | K72: 585.5282174 | O72: 13959.73915
C73: 38 | E73: 602.7829757 | G73: 8.724836777 | I73: 22643.04382 | K73: 594.2530542 | O73: 13356.95618
C74: 39 | E74: 603.1597151 | G74: 8.348097425 | I74: 23246.20354 | K74: 602.6011516 | O74: 12753.79646
C75: 40 | E75: 603.5366899 | G75: 7.971122612 | I75: 23849.74023 | K75: 610.5722742 | O75: 12150.25977
C76: 41 | E76: 603.9139003 | G76: 7.593912189 | I76: 24453.65413 | K76: 618.1661864 | O76: 11546.34587
C77: 42 | E77: 604.2913465 | G77: 7.21646601 | I77: 25057.94547 | K77: 625.3826524 | O77: 10942.05453
C78: 43 | E78: 604.6690286 | G78: 6.838783927 | I78: 25662.6145 | K78: 632.2214364 | O78: 10337.3855
C79: 44 | E79: 605.0469467 | G79: 6.460865792 | I79: 26267.66145 | K79: 638.6823022 | O79: 9732.338552
C80: 45 | E80: 605.425101 | G80: 6.082711459 | I80: 26873.08655 | K80: 644.7650136 | O80: 9126.913451
C81: 46 | E81: 605.8034917 | G81: 5.704320779 | I81: 27478.89004 | K81: 650.4693344 | O81: 8521.109959
C82: 47 | E82: 606.1821189 | G82: 5.325693606 | I82: 28085.07216 | K82: 655.795028 | O82: 7914.92784
C83: 48 | E83: 606.5609827 | G83: 4.94682979 | I83: 28691.63314 | K83: 660.7418578 | O83: 7308.366858
C84: 49 | E84: 606.9400833 | G84: 4.567729184 | I84: 29298.57323 | K84: 665.309587 | O84: 6701.426774
C85: 50 | E85: 607.3194209 | G85: 4.18839164 | I85: 29905.89265 | K85: 669.4979786 | O85: 6094.107354
C86: 51 | E86: 607.6989955 | G86: 3.808817011 | I86: 30513.59164 | K86: 673.3067956 | O86: 5486.408358
C87: 52 | E87: 608.0788074 | G87: 3.429005147 | I87: 31121.67045 | K87: 676.7358008 | O87: 4878.329551
C88: 53 | E88: 608.4588566 | G88: 3.048955901 | I88: 31730.12931 | K88: 679.7847567 | O88: 4269.870694
C89: 54 | E89: 608.8391434 | G89: 2.668669124 | I89: 32338.96845 | K89: 682.4534258 | O89: 3661.031551
C90: 55 | E90: 609.2196678 | G90: 2.288144668 | I90: 32948.18812 | K90: 684.7415705 | O90: 3051.811883
C91: 56 | E91: 609.6004301 | G91: 1.907382384 | I91: 33557.78855 | K91: 686.6489528 | O91: 2442.211453
C92: 57 | E92: 609.9814304 | G92: 1.526382124 | I92: 34167.76998 | K92: 688.175335 | O92: 1832.230022
C93: 58 | E93: 610.3626688 | G93: 1.145143738 | I93: 34778.13265 | K93: 689.3204787 | O93: 1221.867354
C94: 59 | E94: 610.7441454 | G94: 0.763667079 | I94: 35388.87679 | K94: 690.0841458 | O94: 611.1232083
C95: 60 | E95: 611.1232083 | G95: 0.3819519966 | I95: 36000 | K95: 690.4660978 | O95: 0
